fUSD/lending_fUSD_20251212
["ID","MTS","AMOUNT","RATE_DAILY","PERIOD"]
[398304741,1765521043211,-181.27512093,0.000312,5]
[398304742,1765521043221,-500.0,0.000312,5]
[398304743,1765521043233,-550.43330654,0.000312,5]
[398304744,1765521043243,-500.0,0.000312,5]
[398304745,1765521043252,-500.0,0.000312,5]
[398304746,1765521043262,-504.77619297,0.000312,5]
[398304747,1765521043271,-504.46580797,0.000312,5]
[398304748,1765521043281,-500.0,0.000312,5]
[398304749,1765521043290,-500.0,0.000312,5]
[398304750,1765521043300,-500.0,0.000312,5]
[398304751,1765521043310,-576.83817064,0.000312,5]
[398304752,1765521043321,-500.0,0.000312,5]
[398304753,1765521043331,-189.83021365,0.000312,5]
[398304754,1765521043340,-500.0,0.000312,5]
[398304755,1765521043350,-564.0782395,0.000312,5]
[398304756,1765521043360,-500.0,0.000312,5]
[398304757,1765521043369,-200.0,0.000312,5]
[398304758,1765521043379,-515.45695161,0.000312,5]
[398304759,1765521043394,-500.0,0.000312,5]
[398304760,1765521043404,-500.0,0.000312,5]
[398304761,1765521043414,-500.0,0.000312,5]
[398304762,1765521043424,-500.0,0.000312,5]
[398304763,1765521043434,-500.0,0.000312,5]
[398304764,1765521043444,-500.0,0.000314,120]
[398304765,1765521043454,-195.85999852,0.000315,2]
[398304766,1765521043467,-150.0,0.000315,2]
[398304767,1765521043477,-2464.4797558,0.000315,120]
[398304768,1765521043488,-183.6928477,0.00031507,7]
[398304769,1765521043499,-462.1,0.00031507,120]
[398304770,1765521043509,-1000.0,0.00031694,2]
[398304771,1765521043519,-643.36554288,0.00031738,2]
[398304772,1765521043530,-1002.14782291,0.00031748,5]
[398304773,1765521043540,-1000.0,0.00031748,5]
[398304774,1765521043550,-1000.0,0.00031748,5]
[398304775,1765521043560,-178.93750453,0.00031748,5]
[398304776,1765521043570,-1000.0,0.00031748,5]
[398304777,1765521043581,-1000.0,0.00031748,5]
[398304778,1765521043591,-505.61497466,0.00031748,5]
[398304779,1765521043601,-504.94445868,0.00031748,5]
[398304780,1765521043611,-1014.08730683,0.00031748,5]
[398304781,1765521043621,-1000.0,0.00031748,5]
[398304782,1765521043631,-1124.41266427,0.00031748,5]
[398304783,1765521043641,-1000.0,0.00031748,5]
[398304784,1765521043652,-1000.0,0.00031748,5]
[398304785,1765521043662,-1000.0,0.00031748,5]
[398304786,1765521043672,-1000.0,0.00031748,5]
[398304787,1765521043682,-1000.0,0.00031748,5]
[398304788,1765521043693,-504.21734869,0.00031748,5]
[398304789,1765521043704,-354.71634612,0.00031748,5]
[398304790,1765521043715,-1000.0,0.00031748,5]
[398304791,1765521043726,-1000.0,0.00031748,5]
[398304792,1765521043736,-179.68776334,0.00031748,5]
[398304793,1765521043746,-151.0,0.00031748,31]
[398304794,1765521043756,-318.531928,0.00031748,28]
[398304795,1765521043771,-318.531928,0.00031748,28]
[398304796,1765521043781,-318.531928,0.00031748,28]
[398304797,1765521043791,-318.531928,0.00031748,28]
[398304798,1765521043802,-624.503013,0.00031748,31]
[398304799,1765521044163,-624.503013,0.00031748,31]
[398304800,1765521044176,-624.503013,0.00031748,31]
[398304801,1765521044187,-624.503013,0.00031748,31]
[398304802,1765521044196,-221.100201,0.00031764,31]
[398304803,1765521044206,-221.100201,0.00031764,31]
[398304804,1765521044215,-151.0,0.00031764,31]
[398304805,1765521044226,-252.232054,0.00031764,31]
[398304806,1765521044235,-252.232054,0.00031764,31]
[398304807,1765521044244,-252.232054,0.00031764,31]
[398304808,1765521044254,-252.232054,0.00031764,31]
[398304809,1765521044263,-3000.0,0.00031774,14]
[398304810,1765521044273,-151.0,0.00031774,14]
[398304811,1765521044283,-426.0,0.00031779,5]
[398304812,1765521044292,-3000.0,0.00031789,2]
[398304813,1765521044302,-3000.0,0.00031789,7]
[398304814,1765521044312,-2085.31691274,0.00031789,12]
[398304815,1765521044322,-400.0,0.00031885,5]
[398304816,1765521044331,-500.0,0.00031999,30]
[398304817,1765521044341,-1344.78547908,0.00032,5]
[398304818,1765521044353,-4738.00865916,0.00032,120]
[398304819,1765521044362,-150.0,0.00032,2]
[398304820,1765521044372,-152.60019692,0.00032,120]
[398304821,1765521044383,-500.0,0.00032,120]
[398304822,1765521044393,-191.42446085,0.00032,120]
[398304823,1765521044403,-194.15247463,0.00032,120]
[398304824,1765521044414,-150.0,0.0003203,4]
[398304825,1765521044428,-150.0,0.0003203,4]
[398304826,1765521044438,-150.4604109,0.0003203,4]
[398304827,1765521044449,-150.0,0.0003203,4]
[398304828,1765521044458,-150.52289232,0.0003203,4]
[398304829,1765521044468,-150.0,0.0003203,4]
[398304830,1765521044478,-150.0,0.0003203,4]
[398304831,1765521044489,-151.16913992,0.0003203,4]
[398304832,1765521044501,-150.0,0.0003203,4]
[398304833,1765521044511,-150.0,0.0003203,4]
[398304834,1765521044520,-151.22726428,0.0003203,4]
[398304835,1765521044530,-151.70853998,0.0003203,4]
[398304836,1765521044539,-150.0,0.0003203,4]
[398304837,1765521044549,-150.0,0.0003203,4]
[398304838,1765521044558,-150.0,0.0003203,4]
[398304839,1765521044568,-382.47,0.00032055,2]
[398304840,1765521044577,-643.36554288,0.00032069,2]
[398304841,1765521044587,-2220.92819657,0.00032079,2]
[398304842,1765521044596,-200.0,0.000321,6]
[398304843,1765521044608,-200.0,0.000321,6]
[398304844,1765521044621,-157.83323,0.0003213,2]
[398304845,1765521044631,-1500.0,0.00032296,5]
[398304846,1765521044641,-1500.0,0.00032296,5]
[398304847,1765521044651,-1500.0,0.00032296,5]
[398304848,1765521044660,-503.96727997,0.00032296,5]
[398304849,1765521044670,-1561.91686674,0.00032296,5]
[398304850,1765521044679,-1500.0,0.00032296,5]
[398304851,1765521044688,-1500.0,0.00032296,5]
[398304852,1765521044698,-1500.0,0.00032296,5]
[398304853,1765521044708,-1500.0,0.00032296,5]
[398304854,1765521044717,-1500.0,0.00032296,5]
[398304855,1765521044727,-1426.13958269,0.00032296,5]
[398304856,1765521044736,-1500.0,0.00032296,5]
[398304857,1765521044745,-183.241154,0.00032296,30]
[398304858,1765521044755,-886.90454647,0.000323,2]
[398304859,1765521044765,-150.0,0.00032386,7]
[398304860,1765521044775,-159.878817,0.00032545,31]
[398304861,1765521044785,-167.519741,0.00032545,31]
[398304862,1765521044794,-167.519741,0.00032545,31]
[398304863,1765521044804,-167.519741,0.00032545,31]
[398304864,1765521044813,-167.519741,0.00032545,31]
[398304865,1765521044822,-151.0,0.00032545,31]
[398304866,1765521044832,-600.0,0.0003257,5]
[398304867,1765521044842,-152.0,0.00032586,3]
[398304868,1765521044851,-3000.0,0.00032596,14]
[398304869,1765521044861,-150.0,0.00032623,7]
[398304870,1765521044871,-150.0,0.00032742,7]
[398304871,1765521044885,-150.0,0.00032742,7]
[398304872,1765521044895,-150.0,0.00032742,7]
[398304873,1765521044904,-169.19937234,0.00032773,2]
[398304874,1765521044914,-7868.33626649,0.00032777,2]
[398304875,1765521044926,-1058.68447903,0.00032844,5]
[398304876,1765521044935,-2000.0,0.00032844,5]
[398304877,1765521044945,-1507.82916702,0.00032844,5]
[398304878,1765521044955,-946.91932389,0.00032844,5]
[398304879,1765521044965,-2000.0,0.00032844,5]
[398304880,1765521044974,-396.7689122,0.00032844,5]
[398304881,1765521044984,-1624.66337537,0.00032844,5]
[398304882,1765521044994,-2000.0,0.00032844,5]
[398304883,1765521045012,-227.72970341,0.00032844,5]
[398304884,1765521045024,-318.531928,0.00032844,28]
[398304885,1765521045035,-318.531928,0.00032844,28]
[398304886,1765521045045,-318.531928,0.00032844,28]
[398304887,1765521045055,-318.531928,0.00032844,28]
[398304888,1765521045065,-624.503013,0.00032844,31]
[398304889,1765521045075,-624.503013,0.00032844,31]
[398304890,1765521045085,-624.503013,0.00032844,31]
[398304891,1765521045096,-624.503013,0.00032844,31]
[398304892,1765521045108,-643.36554288,0.00032857,2]
[398304893,1765521045118,-209.0,0.0003286,30]
[398304894,1765521045130,-2573.46217152,0.00032867,2]
[398304895,1765521045142,-221.100201,0.00032867,31]
[398304896,1765521045153,-221.100201,0.00032867,31]
[398304897,1765521045163,-151.0,0.00032867,31]
[398304898,1765521045174,-252.232054,0.00032867,31]
[398304899,1765521045185,-252.232054,0.00032867,31]
[398304900,1765521045196,-252.232054,0.00032867,31]
[398304901,1765521045205,-252.232054,0.00032867,31]
[398304902,1765521045215,-500.0,0.00032873,5]
[398304903,1765521045226,-159.27901687,0.00032873,5]
[398304904,1765521045236,-157.93342287,0.00032873,5]
[398304905,1765521045248,-150.0,0.00032873,5]
[398304906,1765521045257,-150.0,0.00032873,5]
[398304907,1765521045267,-500.37915978,0.00032873,5]
[398304908,1765521045278,-796.60245818,0.00032876,2]
[398304909,1765521045291,-500.0,0.00032876,30]
[398304910,1765521045301,-500.0,0.00032876,30]
[398304911,1765521045311,-500.0,0.00032876,30]
[398304912,1765521045320,-517.7,0.00032876,120]
[398304913,1765521045330,-517.7,0.00032876,120]
[398304914,1765521045340,-513.0269969,0.00032876,30]
[398304915,1765521045350,-688.69,0.00032876,30]
[398304916,1765521045360,-688.69,0.00032876,30]
[398304917,1765521045369,-7399.7970849,0.00032877,2]
[398304918,1765521045379,-1000.0,0.00032877,10]
[398304919,1765521045389,-1000.0,0.00032877,10]
[398304920,1765521045399,-1000.0,0.00032877,10]
[398304921,1765521045409,-1000.0,0.00032877,10]
[398304922,1765521045419,-1000.0,0.00032877,10]
[398304923,1765521045429,-1000.0,0.00032877,10]
[398304924,1765521045441,-1000.0,0.00032877,10]
[398304925,1765521045450,-1000.0,0.00032877,10]
[398304926,1765521045460,-1000.0,0.00032877,10]
[398304927,1765521045472,-1000.0,0.00032877,10]
[398304928,1765521045483,-1000.0,0.00032877,10]
[398304929,1765521045494,-341.95,0.00032877,2]
[398304930,1765521045506,-1000.0,0.00032877,10]
[398304931,1765521045517,-825.09,0.00032877,2]
[398304932,1765521045527,-1000.0,0.00032877,10]
[398304933,1765521045537,-1000.0,0.00032877,10]
[398304935,1765521045548,-1000.0,0.00032877,10]
[398304936,1765521045562,-1000.0,0.00032877,10]
[398304937,1765521045572,-1000.0,0.00032877,10]
[398304938,1765521045582,-1000.0,0.00032877,10]
[398304939,1765521045594,-1000.0,0.00032877,10]
[398304940,1765521045603,-1000.0,0.00032877,10]
[398304941,1765521045613,-151.0,0.00032877,31]
[398304942,1765521045623,-151.0,0.00032877,31]
[398304943,1765521045633,-157.480071,0.00032877,31]
[398304944,1765521045643,-151.0,0.00032877,31]
[398304945,1765521045653,-151.0,0.00032877,31]
[398304946,1765521045663,-176.86867,0.00032877,30]
[398304947,1765521045673,-151.0,0.00032877,31]
[398304948,1765521045683,-151.0,0.00032877,31]
[398304949,1765521045694,-151.0,0.00032877,31]
[398304950,1765521045707,-151.0,0.00032877,31]
[398304951,1765521045718,-1000.0,0.00032877,10]
[398304952,1765521045730,-151.0,0.00032877,31]
[398304953,1765521045740,-151.0,0.00032877,31]
[398304954,1765521045750,-151.0,0.00032877,31]
[398304955,1765521045760,-151.0,0.00032877,31]
[398304956,1765521045771,-151.0,0.00032877,31]
[398304957,1765521045781,-151.0,0.00032877,31]
[398304958,1765521045791,-252.531246,0.00032877,31]
[398304959,1765521045801,-151.0,0.00032877,31]
[398304960,1765521045811,-151.0,0.00032877,31]
[398304961,1765521045821,-151.0,0.00032877,31]
[398304962,1765521045831,-151.0,0.00032877,31]
[398304963,1765521045842,-151.0,0.00032877,10]
[398304964,1765521045852,-151.0,0.00032877,10]
[398304965,1765521045862,-168.030204,0.00032877,31]
[398304966,1765521045873,-151.0,0.00032877,10]
[398304967,1765521045886,-151.0,0.00032877,10]
[398304968,1765521045896,-152.90445,0.00032877,10]
[398304969,1765521045907,-169.79455,0.00032877,31]
[398304970,1765521045918,-151.0,0.00032877,31]
[398304971,1765521045928,-174.468853,0.00032877,31]
[398304972,1765521045938,-151.0,0.00032877,31]
[398304973,1765521045948,-151.0,0.00032877,31]
[398304974,1765521045959,-151.0,0.00032877,31]
[398304975,1765521045969,-151.0,0.00032877,31]
[398304976,1765521045980,-154.213687,0.00032877,31]
[398304977,1765521045990,-151.0,0.00032877,31]
[398304978,1765521046000,-151.0,0.00032877,31]
[398304979,1765521046010,-156.644669,0.00032877,31]
[398304980,1765521046021,-177.026197,0.00032877,31]
[398304981,1765521046031,-151.0,0.00032877,31]
[398304982,1765521046040,-151.0,0.00032877,31]
[398304983,1765521046050,-151.0,0.00032877,31]
[398304984,1765521046060,-151.0,0.00032877,31]
[398304985,1765521046070,-151.0,0.00032877,31]
[398304986,1765521046079,-157.282983,0.00032877,31]
[398304987,1765521046089,-151.0,0.00032877,31]
[398304988,1765521046098,-151.0,0.00032877,31]
[398304989,1765521046109,-174.217547,0.00032877,31]
[398304990,1765521046121,-151.0,0.00032877,31]
[398304991,1765521046131,-151.0,0.00032877,31]
[398304992,1765521046141,-151.0,0.00032877,31]
[398304993,1765521046152,-151.0,0.00032877,31]
[398304994,1765521046162,-151.0,0.00032877,31]
[398304995,1765521046174,-158.375758,0.00032877,31]
[398304996,1765521046184,-151.0,0.00032877,31]
[398304997,1765521046194,-151.0,0.00032877,31]
[398304998,1765521046203,-151.0,0.00032877,31]
[398304999,1765521046213,-151.0,0.00032877,31]
[398305000,1765521046222,-186.566144,0.00032877,31]
[398305001,1765521046232,-726.29167,0.00032877,31]
[398305002,1765521046241,-186.566144,0.00032877,31]
[398305003,1765521046251,-726.29167,0.00032877,31]
[398305004,1765521046260,-186.566144,0.00032877,31]
[398305005,1765521046270,-726.29167,0.00032877,31]
[398305006,1765521046280,-186.566144,0.00032877,31]
[398305007,1765521046290,-726.29167,0.00032877,31]
[398305008,1765521046299,-186.566144,0.00032877,31]
[398305009,1765521046309,-726.29167,0.00032877,31]
[398305010,1765521046320,-186.566144,0.00032877,31]
[398305011,1765521046330,-726.29167,0.00032877,31]
[398305012,1765521046340,-726.29167,0.00032877,31]
[398305013,1765521046350,-726.29167,0.00032877,31]
[398305014,1765521046359,-186.566144,0.00032877,31]
[398305015,1765521046369,-186.566144,0.00032877,31]
[398305016,1765521046379,-151.0,0.00032877,31]
[398305017,1765521046388,-151.0,0.00032877,31]
[398305018,1765521046398,-151.0,0.00032877,31]
[398305019,1765521046407,-151.0,0.00032877,31]
[398305020,1765521046417,-151.0,0.00032877,31]
[398305021,1765521046427,-252.717092,0.00032877,31]
[398305022,1765521046437,-181.084511,0.00032877,31]
[398305023,1765521046447,-181.084511,0.00032877,31]
[398305024,1765521046456,-181.084511,0.00032877,31]
[398305025,1765521046466,-181.084511,0.00032877,31]
[398305026,1765521046475,-304.88867104,0.00032877,2]
[398305027,1765521046485,-181.084511,0.00032877,31]
[398305028,1765521046494,-181.084511,0.00032877,31]
[398305029,1765521046504,-181.084511,0.00032877,31]
[398305030,1765521046513,-181.084511,0.00032877,31]
[398305031,1765521046523,-161.355227,0.00032877,31]
[398305032,1765521046533,-151.0,0.00032877,31]
[398305033,1765521046542,-151.0,0.00032877,31]
[398305034,1765521046552,-159.728767,0.00032877,30]
[398305035,1765521046561,-158.659745,0.00032877,31]
[398305036,1765521046570,-338.780587,0.00032877,31]
[398305037,1765521046580,-338.780587,0.00032877,31]
[398305038,1765521046589,-338.780587,0.00032877,31]
[398305039,1765521046599,-338.780587,0.00032877,31]
[398305040,1765521046609,-156.458573,0.00032877,31]
[398305041,1765521046618,-338.780587,0.00032877,31]
[398305042,1765521046628,-338.780587,0.00032877,31]
[398305043,1765521046638,-514.293794,0.00032877,31]
[398305044,1765521046647,-514.293794,0.00032877,31]
[398305045,1765521046657,-338.780587,0.00032877,31]
[398305046,1765521046667,-514.293794,0.00032877,31]
[398305047,1765521046676,-338.780587,0.00032877,31]
[398305048,1765521046686,-514.293794,0.00032877,31]
[398305049,1765521046696,-514.293794,0.00032877,31]
[398305050,1765521046705,-514.293794,0.00032877,31]
[398305051,1765521046715,-514.293794,0.00032877,31]
[398305052,1765521046725,-514.293794,0.00032877,31]
[398305053,1765521046734,-275.756305,0.00032877,31]
[398305054,1765521046744,-275.756305,0.00032877,31]
[398305055,1765521046754,-275.756305,0.00032877,31]
[398305056,1765521046763,-275.756305,0.00032877,31]
[398305057,1765521046772,-275.756305,0.00032877,31]
[398305058,1765521046781,-275.756305,0.00032877,31]
[398305059,1765521046791,-275.756305,0.00032877,31]
[398305060,1765521046799,-275.756305,0.00032877,31]
[398305061,1765521046809,-1000.0,0.00032877,10]
[398305062,1765521046818,-161.238515,0.00032877,31]
[398305063,1765521046827,-172.840979,0.00032877,31]
[398305064,1765521046836,-248.583171,0.00032877,31]
[398305065,1765521046845,-248.583171,0.00032877,31]
[398305066,1765521046854,-248.583171,0.00032877,31]
[398305067,1765521046864,-248.583171,0.00032877,31]
[398305068,1765521046873,-248.583171,0.00032877,31]
[398305069,1765521046887,-248.583171,0.00032877,31]
[398305070,1765521046896,-248.583171,0.00032877,31]
[398305071,1765521046906,-248.583171,0.00032877,31]
[398305072,1765521046915,-248.583171,0.00032877,31]
[398305073,1765521046926,-248.583171,0.00032877,31]
[398305074,1765521046935,-248.583171,0.00032877,31]
[398305075,1765521046945,-248.583171,0.00032877,31]
[398305076,1765521046954,-153.649665,0.00032877,31]
[398305077,1765521046966,-151.0,0.00032877,31]
[398305078,1765521046976,-151.0,0.00032877,31]
[398305079,1765521046985,-216.749473,0.00032877,31]
[398305080,1765521046995,-167.650928,0.00032877,31]
[398305081,1765521047004,-153.741398,0.00032877,31]
[398305082,1765521047013,-151.0,0.00032877,31]
[398305083,1765521047022,-151.0,0.00032877,31]
[398305084,1765521047031,-151.0,0.00032877,31]
[398305085,1765521047041,-151.0,0.00032877,31]
[398305086,1765521047050,-256.53757,0.00032877,31]
[398305087,1765521047059,-151.0,0.00032877,30]
[398305088,1765521047068,-153.242709,0.00032877,31]
[398305089,1765521047077,-151.0,0.00032877,30]
[398305090,1765521047087,-151.0,0.00032877,30]
[398305091,1765521047097,-339.392596,0.00032877,31]
[398305092,1765521047106,-339.392596,0.00032877,31]
[398305093,1765521047115,-339.392596,0.00032877,31]
[398305094,1765521047124,-151.0,0.00032877,31]
[398305095,1765521047133,-151.0,0.00032877,31]
[398305096,1765521047142,-339.392596,0.00032877,31]
[398305097,1765521047151,-339.392596,0.00032877,31]
[398305098,1765521047160,-339.392596,0.00032877,31]
[398305099,1765521047170,-151.0,0.00032877,31]
[398305100,1765521047180,-151.0,0.00032877,31]
[398305101,1765521047190,-339.392596,0.00032877,31]
[398305102,1765521047199,-339.392596,0.00032877,31]
[398305103,1765521047209,-339.392596,0.00032877,31]
[398305104,1765521047218,-339.392596,0.00032877,31]
[398305105,1765521047228,-339.392596,0.00032877,31]
[398305106,1765521047238,-339.392596,0.00032877,31]
[398305107,1765521047248,-536.542005,0.00032877,31]
[398305108,1765521047259,-536.542005,0.00032877,31]
[398305109,1765521047269,-536.542005,0.00032877,31]
[398305110,1765521047280,-536.542005,0.00032877,31]
[398305111,1765521047290,-536.542005,0.00032877,31]
[398305112,1765521047300,-536.542005,0.00032877,31]
[398305113,1765521047310,-536.542005,0.00032877,31]
[398305114,1765521047319,-536.542005,0.00032877,31]
[398305115,1765521047329,-536.542005,0.00032877,31]
[398305116,1765521047338,-536.542005,0.00032877,31]
[398305117,1765521047348,-536.542005,0.00032877,31]
[398305118,1765521047357,-536.542005,0.00032877,31]
[398305119,1765521047366,-151.000016,0.00032877,31]
[398305120,1765521047376,-151.0,0.00032877,31]
[398305121,1765521047386,-151.0,0.00032877,31]
[398305122,1765521047397,-301.042637,0.00032877,31]
[398305123,1765521047406,-151.0,0.00032877,31]
[398305124,1765521047416,-301.042637,0.00032877,31]
[398305125,1765521047426,-301.042637,0.00032877,31]
[398305126,1765521047436,-301.042637,0.00032877,31]
[398305127,1765521047446,-301.042637,0.00032877,31]
[398305128,1765521047456,-301.042637,0.00032877,31]
[398305129,1765521047466,-301.042637,0.00032877,31]
[398305130,1765521047476,-301.042637,0.00032877,31]
[398305131,1765521047486,-301.042637,0.00032877,31]
[398305132,1765521047498,-301.042637,0.00032877,31]
[398305133,1765521047508,-301.042637,0.00032877,31]
[398305134,1765521047520,-301.042637,0.00032877,31]
[398305135,1765521047529,-151.0,0.00032877,31]
[398305136,1765521047539,-339.429205,0.00032877,31]
[398305137,1765521047858,-339.429205,0.00032877,31]
[398305138,1765521047869,-339.429205,0.00032877,31]
[398305139,1765521047882,-339.429205,0.00032877,31]
[398305140,1765521047896,-339.429205,0.00032877,31]
[398305141,1765521047906,-339.429205,0.00032877,31]
[398305142,1765521047916,-339.429205,0.00032877,31]
[398305143,1765521047926,-339.429205,0.00032877,31]
[398305144,1765521047936,-339.429205,0.00032877,31]
[398305145,1765521047945,-339.429205,0.00032877,31]
[398305146,1765521047955,-339.429205,0.00032877,31]
[398305147,1765521047964,-339.429205,0.00032877,31]
[398305148,1765521047973,-216.385067,0.00032877,31]
[398305149,1765521047983,-216.385067,0.00032877,31]
[398305150,1765521047992,-216.385067,0.00032877,31]
[398305151,1765521048002,-216.385067,0.00032877,31]
[398305152,1765521048011,-216.385067,0.00032877,31]
[398305153,1765521048020,-216.385067,0.00032877,31]
[398305154,1765521048030,-216.385067,0.00032877,31]
[398305155,1765521048039,-216.385067,0.00032877,31]
[398305156,1765521048048,-216.385067,0.00032877,31]
[398305157,1765521048058,-216.385067,0.00032877,31]
[398305158,1765521048069,-216.385067,0.00032877,31]
[398305159,1765521048085,-216.385067,0.00032877,31]
[398305160,1765521048095,-162.264074,0.00032877,31]
[398305161,1765521048106,-151.0,0.00032877,31]
[398305162,1765521048115,-151.0,0.00032877,31]
[398305163,1765521048124,-153.881103,0.00032877,31]
[398305164,1765521048133,-171.167557,0.00032877,31]
[398305165,1765521048142,-180.789809,0.00032877,31]
[398305166,1765521048151,-180.789809,0.00032877,31]
[398305167,1765521048161,-180.789809,0.00032877,31]
[398305168,1765521048171,-180.789809,0.00032877,31]
[398305169,1765521048180,-180.789809,0.00032877,31]
[398305170,1765521048190,-180.789809,0.00032877,31]
[398305171,1765521048199,-180.789809,0.00032877,31]
[398305172,1765521048209,-180.789809,0.00032877,31]
[398305173,1765521048218,-180.789809,0.00032877,31]
[398305174,1765521048228,-180.789809,0.00032877,31]
[398305175,1765521048238,-180.789809,0.00032877,31]
[398305176,1765521048247,-180.789809,0.00032877,31]
[398305177,1765521048257,-151.0,0.00032877,31]
[398305178,1765521048266,-151.0,0.00032877,31]
[398305179,1765521048276,-151.0,0.00032877,31]
[398305180,1765521048285,-153.516172,0.00032877,31]
[398305181,1765521048295,-185.210018,0.00032877,31]
[398305182,1765521048306,-151.0,0.00032877,31]
[398305183,1765521048315,-151.0,0.00032877,31]
[398305184,1765521048325,-151.0,0.00032877,31]
[398305185,1765521048335,-152.015197,0.00032877,31]
[398305186,1765521048344,-378.205062,0.00032877,31]
[398305187,1765521048353,-378.205062,0.00032877,31]
[398305188,1765521048364,-378.205062,0.00032877,31]
[398305189,1765521048374,-378.205062,0.00032877,31]
[398305190,1765521048385,-378.205062,0.00032877,31]
[398305191,1765521048395,-378.205062,0.00032877,31]
[398305192,1765521048406,-378.205062,0.00032877,31]
[398305193,1765521048416,-151.0,0.00032877,31]
[398305194,1765521048427,-378.205062,0.00032877,31]
[398305195,1765521048436,-151.0,0.00032877,31]
[398305196,1765521048449,-378.205062,0.00032877,31]
[398305197,1765521048459,-151.0,0.00032877,31]
[398305198,1765521048468,-378.205062,0.00032877,31]
[398305199,1765521048478,-151.0,0.00032877,31]
[398305200,1765521048488,-378.205062,0.00032877,31]
[398305201,1765521048497,-151.0,0.00032877,31]
[398305202,1765521048506,-378.205062,0.00032877,31]
[398305203,1765521048516,-299.948511,0.00032877,31]
[398305204,1765521048526,-955.163861,0.00032877,31]
[398305205,1765521048535,-955.163861,0.00032877,31]
[398305206,1765521048544,-955.163861,0.00032877,31]
[398305207,1765521048554,-955.163861,0.00032877,31]
[398305208,1765521048563,-955.163861,0.00032877,31]
[398305209,1765521048573,-955.163861,0.00032877,31]
[398305210,1765521048582,-955.163861,0.00032877,31]
[398305211,1765521048591,-955.163861,0.00032877,31]
[398305212,1765521048601,-955.163861,0.00032877,31]
[398305213,1765521048611,-955.163861,0.00032877,31]
[398305214,1765521048620,-955.163861,0.00032877,31]
[398305215,1765521048630,-955.163861,0.00032877,31]
[398305216,1765521048639,-151.0,0.00032877,31]
[398305217,1765521048648,-151.0,0.00032877,31]
[398305218,1765521048659,-160.651449,0.00032877,31]
[398305219,1765521048668,-201.796097,0.00032877,31]
[398305220,1765521048678,-846.724653,0.00032877,31]
[398305221,1765521048687,-846.724653,0.00032877,31]
[398305222,1765521048698,-846.724653,0.00032877,31]
[398305223,1765521048709,-846.724653,0.00032877,31]
[398305224,1765521048719,-846.724653,0.00032877,31]
[398305225,1765521048729,-846.724653,0.00032877,31]
[398305226,1765521048738,-846.724653,0.00032877,31]
[398305227,1765521048748,-846.724653,0.00032877,31]
[398305228,1765521048757,-846.724653,0.00032877,31]
[398305229,1765521048766,-846.724653,0.00032877,31]
[398305230,1765521048776,-846.724653,0.00032877,31]
[398305231,1765521048786,-846.724653,0.00032877,31]
[398305232,1765521048795,-282.019834,0.00032877,31]
[398305233,1765521048807,-829.085633,0.00032877,31]
[398305234,1765521048827,-829.085633,0.00032877,31]
[398305235,1765521048838,-829.085633,0.00032877,31]
[398305236,1765521048848,-829.085633,0.00032877,31]
[398305237,1765521048858,-829.085633,0.00032877,31]
[398305238,1765521048868,-829.085633,0.00032877,31]
[398305239,1765521048879,-151.0,0.00032877,31]
[398305240,1765521048892,-829.085633,0.00032877,31]
[398305241,1765521048902,-829.085633,0.00032877,31]